bitfinex-derivatives/quotes_ETHF0:USTF0_20240901
["timestamp","ask_amount","ask_price","bid_price","bid_amount"]
[1725168684473,2.294,2474.0,2473.3,0.24259]
[1725168684685,5.5018,2474.0,2473.7,2.8]
[1725168685088,9.5442,2474.0,2473.8,5.29586397]
[1725168685277,4.0424,2473.9,2473.7,2.8]
[1725168685477,2.294,2474.0,2473.7,2.8]
[1725168685685,2.294,2474.0,2473.8,5.29586397]
[1725168686090,6.3364,2474.0,2473.8,5.29586397]
[1725168686483,2.294,2474.0,2473.8,5.29586397]
[1725168686691,6.3364,2474.0,2473.8,5.29586397]
[1725168686890,6.3364,2474.0,2473.7,2.8]
[1725168687088,4.3283,2474.0,2473.7,2.8]
[1725168687284,1.1205,2474.0,2473.8,5.33620366]
[1725168687484,1.1205,2474.0,2473.9,2.8]
[1725168687989,7.41579831,2474.3,2473.9,2.8]
[1725168688190,1.112,2474.2,2473.9,2.8]
[1725168688883,1.112,2474.2,2474.0,5.32669623]
[1725168689592,1.112,2474.2,2474.0,5.56922623]
[1725168689895,3.2078,2474.6,2474.0,5.32669623]
[1725168690094,3.2078,2474.6,2474.2,3.04251]
[1725168690391,3.2078,2474.6,2474.3,5.26431645]
[1725168690593,3.2078,2474.6,2474.3,5.50681645]
[1725168690784,4.0416,2474.5,2474.0,2.8]
[1725168690983,3.2078,2474.6,2474.0,2.8]
[1725168691180,3.2078,2474.6,2474.0,8.12265569]
[1725168691382,3.2078,2474.6,2474.0,2.8]
[1725168691695,3.2078,2474.6,2474.2,2.8]
[1725168692088,3.2078,2474.6,2474.3,5.28265002]
[1725168692285,7.2494,2474.6,2474.3,5.28265002]
[1725168692683,3.2078,2474.6,2474.3,5.28265002]
[1725168694279,3.2078,2474.6,2474.0,2.8]
[1725168694280,4.0416,2474.5,2474.0,2.8]
[1725168694490,3.5366,2474.8,2474.0,2.8]
[1725168694491,3.2078,2474.3,2474.0,2.8]
[1725168694687,2.342,2474.2,2474.0,8.08297255]
[1725168694990,2.342,2474.2,2474.0,2.8]
[1725168695193,2.342,2474.2,2474.1,5.22436031]
[1725168696287,1.1819,2474.2,2474.1,5.46688031]
[1725168696487,3.2078,2474.3,2474.1,5.22436031]
[1725168696692,3.2078,2474.3,2474.2,2.8]
[1725168697089,3.2078,2474.3,2474.2,13.17413885]
[1725168697390,3.2078,2474.3,2474.2,21.70053008]
[1725168697595,3.2078,2474.3,2474.2,21.94304008]
[1725168697981,3.2078,2474.3,2474.2,21.70053008]
[1725168698192,3.2078,2474.3,2474.2,21.94304008]
[1725168698694,3.2078,2474.6,2474.2,27.70053008]
[1725168698996,3.2078,2474.6,2474.5,2.8]
[1725168699298,3.2078,2474.6,2474.5,7.9539599]
[1725168699994,1.1516,2474.9,2474.5,7.9539599]
[1725168701693,1.1516,2474.9,2474.8,2.8]
[1725168702095,5.1924,2474.9,2474.8,8.07299787]
[1725168702499,5.1924,2474.9,2474.8,5.27299787]
[1725168703293,5.1924,2474.9,2474.8,2.8]
[1725168703694,5.1924,2474.9,2474.8,7.9464998]
[1725168705005,11.1924,2474.9,2474.6,2.8]
[1725168705307,5.1924,2474.9,2474.6,2.8]
[1725168705799,3.2078,2475.0,2474.7,5.29321321]
[1725168706103,3.2078,2475.0,2474.8,2.8]
[1725168706499,4.0408,2475.0,2474.8,2.8]
[1725168707093,4.0408,2475.0,2474.9,5.2690919]
[1725168707608,3.2078,2475.3,2474.9,5.2690919]
[1725168707609,3.2078,2475.3,2475.0,0.24243]
[1725168707805,5.5723,2475.6,2475.0,2.8]
[1725168708004,5.5723,2475.6,2475.3,2.8]
[1725168710004,5.5723,2475.6,2475.4,5.17413827]
[1725168710804,3.2078,2475.6,2475.4,5.17413827]
[1725168711104,3.2078,2475.6,2475.4,5.41652827]
[1725168711803,3.2078,2475.6,2475.5,0.20230303]
[1725168712004,3.2078,2475.6,2475.4,5.17413827]
[1725168714104,3.2078,2475.6,2475.5,0.20197979]
[1725168714307,7.247,2475.6,2475.4,5.17413827]
[1725168714503,7.247,2475.6,2475.0,1.33803]
[1725168714504,2.2172,2475.5,2475.1,2.8]
[1725168714708,3.2078,2475.3,2475.1,2.8]
[1725168714913,3.2078,2475.3,2475.1,8.09092646]
[1725168715109,2.2172,2475.5,2475.1,8.09092646]
[1725168715110,2.2172,2475.5,2475.1,8.33334646]
[1725168715310,2.2172,2475.5,2475.1,8.09092646]
[1725168715712,3.2078,2475.3,2475.1,8.09092646]
[1725168716206,2.2172,2475.5,2475.1,8.09092646]
[1725168716802,2.2172,2475.5,2475.1,8.33334646]
[1725168716998,1.1157,2475.5,2475.1,8.33334646]
[1725168717704,1.1157,2475.5,2475.3,3.0424]
[1725168717908,3.2078,2475.6,2475.3,3.0424]
[1725168718104,3.2078,2475.6,2475.4,5.27254191]
[1725168718699,4.0392,2475.5,2475.0,1.0956]
[1725168719010,2.5043,2475.5,2475.1,5.22585268]
[1725168719402,2.5043,2475.5,2475.1,5.46827268]
[1725168719597,2.5043,2475.5,2475.1,5.22585268]
[1725168719797,2.5043,2475.5,2475.0,3.8956]
[1725168719798,3.2078,2475.3,2475.0,2.8]
[1725168720001,7.2478,2475.3,2475.0,2.8]
[1725168720208,3.2078,2475.3,2475.0,2.8]
[1725168720398,3.2078,2475.3,2475.1,5.45286533]
[1725168720602,3.2078,2475.3,2475.1,5.21044533]
[1725168720913,3.2078,2475.3,2475.0,2.8]
[1725168720914,4.04,2475.2,2475.0,2.8]
[1725168721105,7.2478,2475.3,2475.0,2.8]
[1725168721305,3.2078,2475.3,2475.1,5.28832318]
[1725168722807,3.2078,2475.3,2475.0,2.8]
[1725168722808,4.04,2475.2,2475.0,2.8]
[1725168723007,7.2478,2475.3,2475.0,2.8]
[1725168724211,4.04,2475.2,2474.8,2.8]
[1725168724402,3.2078,2474.9,2474.8,2.8]
[1725168724812,7.2486,2474.9,2474.8,2.8]
[1725168725217,7.2486,2474.9,2474.4,3.85429]
[1725168725218,13.2486,2474.9,2474.2,0.20460545]
[1725168725416,3.2078,2474.5,2474.2,0.20460545]
[1725168725717,4.0416,2474.4,2474.2,0.00606686]
[1725168725917,4.0416,2474.3,2474.2,0.00606686]
[1725168726115,4.0416,2474.4,2474.2,0.00606686]
[1725168726309,0.24251,2474.3,2473.7,2.8]
[1725168726513,3.2078,2473.8,2473.7,2.8]
[1725168727716,0.00606686,2474.0,2473.9,0.24254]
[1725168728113,0.00606686,2474.0,2473.9,9.59389964]
[1725168728420,0.00606686,2474.0,2473.9,10.79299964]
[1725168728619,3.2078,2474.6,2474.0,0.24252]
[1725168728819,3.2078,2474.6,2474.4,2.8]
[1725168729019,1.03638327,2474.8,2474.2,2.8]
[1725168729020,3.2078,2474.5,2474.2,2.8]
[1725168729222,1.1868,2474.4,2474.2,2.8]
[1725168729515,3.2078,2474.5,2474.3,5.3155031]
[1725168729723,3.2078,2474.5,2474.4,2.8]
[1725168730216,3.2078,2474.5,2474.3,1.1692]
[1725168730723,2.3354,2474.9,2474.4,8.38793484]
[1725168730724,4.3946,2474.9,2474.4,8.38793484]
[1725168731018,4.3946,2474.9,2474.8,2.8]
[1725168731212,4.3946,2474.9,2474.8,2.99960632]
[1725168731411,8.4354,2474.9,2474.8,2.99960632]
[1725168731723,8.4354,2474.9,2474.8,8.29986268]
[1725168731724,3.2078,2474.9,2474.8,8.29986268]
[1725168732519,3.2078,2474.9,2474.8,2.8]
[1725168732919,7.2486,2474.9,2474.8,2.8]
[1725168733121,14.4061,2474.9,2474.5,2.8]
[1725168733322,3.2078,2474.6,2474.5,3.19354619]
[1725168733519,3.2078,2474.6,2474.5,2.8]
[1725168733719,3.2078,2474.6,2474.4,0.39344984]
[1725168733720,7.2486,2474.6,2474.4,0.39344984]
[1725168734025,3.2078,2474.6,2474.3,2.8]
[1725168734221,13.2494,2474.6,2474.3,0.39344984]
[1725168734420,6.28218327,2474.5,2474.1,0.39344984]
[1725168734618,3.2078,2474.2,2474.1,0.39344984]
[1725168734927,3.2078,2474.2,2473.8,0.39344984]
[1725168735121,1.27889327,2474.3,2473.7,2.8]
[1725168735122,3.2078,2473.9,2473.7,2.8]
[1725168735516,3.2078,2473.9,2473.7,3.19354463]
[1725168735716,3.2078,2473.9,2473.7,2.8]
[1725168735915,3.2078,2473.9,2473.7,3.19354463]
[1725168736124,3.2078,2473.9,2473.7,2.8]
[1725168736317,4.0424,2473.8,2473.5,0.20476377]
[1725168736518,3.2078,2473.6,2473.5,0.20476377]
[1725168737025,7.2502,2473.6,2473.5,0.20476377]
[1725168737229,7.2502,2473.6,2473.5,0.00606686]
[1725168737230,13.2502,2473.6,2473.5,0.00606686]
[1725168737826,13.2502,2473.6,2472.9,4.4628]
[1725168737827,14.28658327,2473.6,2472.9,4.4628]
[1725168738026,3.2078,2473.2,2472.9,4.4628]
[1725168738324,3.2078,2473.2,2472.9,1.6628]
[1725168738727,3.2078,2473.2,2473.0,0.20712761]
[1725168738916,4.0432,2473.1,2472.9,0.00606686]
[1725168739229,5.2543,2473.1,2472.9,0.00606686]
[1725168741016,5.2543,2473.1,2471.9,9.29585457]
[1725168741017,4.044,2473.0,2471.9,3.2078]
[1725168741217,4.044,2473.0,2471.7,0.20573246]
[1725168741218,3.2078,2472.2,2471.7,0.20573246]
[1725168741423,3.2078,2471.9,2471.5,3.73]
[1725168741626,3.2078,2471.9,2471.5,3.93462187]
[1725168741934,3.2078,2471.9,2471.6,5.75215294]
[1725168742119,3.2078,2471.9,2471.5,4.53156449]
[1725168742323,3.2078,2471.9,2471.5,3.94068873]
[1725168743021,0.00606686,2472.0,2471.8,3.73]
[1725168743325,3.2078,2471.9,2471.5,3.94068873]
[1725168744625,3.2078,2471.9,2471.6,5.30976823]
[1725168746019,0.00606686,2472.0,2471.8,3.73]
[1725168746525,0.00606686,2472.0,2471.9,5.26904825]
[1725168747029,3.2078,2472.2,2471.9,9.55738825]
[1725168747330,3.2078,2472.2,2472.1,3.73]
[1725168747535,3.2078,2472.6,2472.2,0.2427]
[1725168747720,3.2078,2472.9,2472.5,3.73]
[1725168748124,3.21386686,2472.9,2472.6,5.14779484]
[1725168748423,3.21386686,2472.9,2472.6,6.49259484]
[1725168748625,0.00606686,2472.9,2472.8,3.97265]
[1725168748823,0.00606686,2472.9,2472.8,8.22279114]
[1725168749027,3.2078,2473.7,2472.8,28.254647]
[1725168749227,3.2078,2473.7,2473.2,3.73]
[1725168749524,3.2078,2473.7,2473.3,6.55598707]
[1725168750226,3.2078,2474.0,2473.3,6.80464393]
[1725168751128,3.2078,2474.0,2473.3,6.56205393]
[1725168751328,3.2078,2473.7,2473.3,1.35086686]
[1725168751632,4.0424,2474.0,2473.3,0.00606686]
[1725168751633,3.2078,2473.4,2473.3,0.00606686]
[1725168751926,4.0424,2474.0,2473.3,0.00606686]
[1725168751927,3.2078,2473.7,2473.3,0.00606686]
[1725168754532,3.2078,2473.7,2473.4,5.13971441]
[1725168755128,4.0424,2473.6,2473.3,0.00606686]
[1725168755435,3.2078,2473.4,2473.3,0.00606686]
[1725168755932,7.251,2473.4,2473.3,0.00606686]
[1725168756328,13.251,2473.4,2473.3,0.00606686]
[1725168758141,13.49359,2473.4,2473.3,0.00606686]
[1725168758338,18.90079063,2473.4,2472.6,3.73]
[1725168758543,3.2078,2472.9,2472.6,3.73]
[1725168759047,1.3346,2472.8,2472.6,3.73]
[1725168759346,1.3346,2472.8,2472.5,3.21386686]
[1725168759644,1.3346,2472.8,2472.5,0.00606686]
[1725168759645,5.3786,2472.8,2472.5,0.00606686]
[1725168759845,3.2078,2472.6,2472.5,0.00606686]
[1725168760231,13.2526,2472.6,2472.5,0.00606686]
[1725168760842,13.2526,2472.6,2471.7,5.8611]
[1725168760843,13.2526,2472.6,2471.7,1.3083]
[1725168761142,3.2078,2472.3,2471.7,1.3083]
[1725168761349,1.357,2472.2,2471.7,1.55105]
[1725168761952,3.2078,2472.3,2471.8,5.22660817]
[1725168762143,3.2078,2472.3,2471.8,5.46934817]
[1725168762950,3.2078,2472.3,2471.8,5.22660817]
[1725168763359,3.2078,2472.3,2471.7,1.31436686]
[1725168763655,3.2078,2472.3,2471.7,0.00606686]
[1725168763958,3.2078,2471.9,2471.7,0.00606686]
[1725168767548,1.385,2471.8,2471.7,0.00606686]
[1725168768060,3.2078,2471.9,2471.7,0.00606686]
[1725168768955,3.2078,2472.3,2471.7,3.97881686]
[1725168769266,3.2078,2472.3,2472.0,0.24272]
[1725168769468,3.2078,2472.3,2471.9,0.24273]
[1725168769658,3.2078,2472.3,2472.1,5.27855551]
[1725168770149,3.2078,2472.3,2471.9,0.24273]
[1725168770352,3.2078,2472.3,2472.0,0.24273]
[1725168770657,3.2078,2472.3,2472.0,5.19936476]
[1725168770967,3.2078,2472.3,2471.8,1.3258]
[1725168771154,3.2078,2472.3,2471.9,0.24273]
[1725168771346,3.2078,2472.6,2472.1,5.18238887]
[1725168771752,3.2078,2472.6,2472.0,5.38482]
[1725168771952,3.2078,2472.6,2472.1,5.18238887]
[1725168772262,3.2078,2472.6,2472.1,5.42509887]
[1725168772853,3.2078,2472.6,2472.1,5.18238887]
[1725168773355,3.2078,2472.3,2472.0,3.73]
[1725168773960,3.2078,2472.3,2471.8,1.3258]
[1725168774257,1.352,2472.2,2471.8,1.3258]
[1725168776156,3.2078,2472.0,2471.7,3.73606686]
[1725168776564,3.2078,2472.0,2471.8,5.14970912]
[1725168776762,1.352,2472.2,2471.8,5.14970912]
[1725168777773,3.2078,2472.3,2471.9,1.3109]
[1725168778059,3.2078,2472.3,2472.0,0.24273]
[1725168778261,4.5421,2472.6,2472.0,5.28419647]
[1725168778659,4.5421,2472.6,2472.0,9.01419647]
[1725168778862,3.2078,2472.3,2472.0,5.28419647]
[1725168779163,3.2078,2472.3,2472.1,0.59082957]
[1725168779562,3.2078,2472.3,2472.2,5.33388999]
[1725168780366,3.2078,2472.3,2472.2,5.92471956]
[1725168780664,4.78477,2472.6,2472.2,0.59082957]
[1725168780865,3.4505,2472.3,2472.1,0.59080075]
[1725168781075,3.4505,2472.3,2471.8,0.59084557]
[1725168781264,3.2078,2471.9,2471.7,0.00606686]
[1725168781763,7.49614,2471.9,2471.7,0.00606686]
[1725168781960,1.276,2471.8,2471.7,0.00606686]
[1725168782161,3.2078,2471.9,2471.7,0.00606686]
[1725168782562,7.2534,2471.9,2471.7,0.00606686]
[1725168782771,4.0456,2471.8,2471.7,0.00606686]
[1725168783062,6.6596,2471.8,2471.7,0.00606686]
[1725168783253,3.2078,2471.9,2471.7,0.59695875]
[1725168783453,3.2078,2471.9,2471.7,0.00606686]
[1725168783663,4.0456,2471.8,2471.7,0.00606686]
[1725168783869,4.0456,2471.8,2471.7,0.59696096]
[1725168784068,5.4313,2471.8,2471.7,0.59696096]
[1725168784262,11.4313,2471.8,2471.7,0.00606686]
[1725168784968,11.67405,2471.8,2471.7,0.00606686]
[1725168786165,0.24276,2471.7,2471.0,3.73]
[1725168786365,3.2078,2471.2,2471.1,0.59092727]
[1725168786756,3.2078,2471.2,2470.8,1.389]
[1725168786757,7.2542,2471.2,2470.8,1.389]
[1725168786957,3.2078,2471.2,2470.9,0.59098272]
[1725168787169,3.2078,2471.2,2471.0,0.59098272]
[1725168787561,0.00606686,2471.3,2470.9,5.20690407]
[1725168787771,3.2078,2471.2,2471.0,0.59096234]
[1725168787976,3.2078,2471.2,2471.1,0.59096234]
[1725168788165,3.2078,2471.2,2471.0,0.5909748]
[1725168788361,3.2078,2471.2,2470.9,5.20690407]
[1725168788568,3.2078,2471.2,2470.8,1.60021374]
[1725168788569,3.2078,2471.2,2471.1,5.23351631]
[1725168788771,3.2078,2471.2,2471.0,5.23351631]
[1725168789070,3.2078,2471.2,2470.9,5.47634631]
[1725168789275,3.2078,2471.2,2471.0,0.59096262]
[1725168789477,3.2078,2471.2,2471.0,5.80087463]
[1725168789775,3.2078,2471.2,2471.0,5.20991201]
[1725168790074,3.2078,2471.2,2471.0,0.59096262]
[1725168790274,3.2078,2471.2,2470.9,0.59096262]
[1725168790482,4.5737,2471.2,2470.9,0.59096262]
[1725168790670,4.5737,2471.2,2470.9,5.80239206]
[1725168790971,4.5737,2471.2,2470.9,5.80240205]
[1725168791476,0.00606686,2471.3,2470.9,5.80240205]
[1725168791672,0.00606686,2471.3,2471.0,4.32097261]
[1725168792067,0.00606686,2471.3,2471.1,5.22700643]
[1725168792265,0.00606686,2471.3,2471.2,2.8]
[1725168792477,0.00606686,2471.3,2471.2,8.96907261]
[1725168792671,0.00606686,2471.3,2471.2,14.02021713]
[1725168792872,0.00606686,2471.3,2471.2,14.26301713]
[1725168793781,7.3708,2471.8,2471.2,28.68240173]
[1725168793965,3.2078,2471.8,2471.6,3.04276]
[1725168794165,3.2078,2472.1,2471.7,1.3717]
[1725168794374,3.2078,2472.1,2471.7,6.53079527]
[1725168794573,7.3708,2472.4,2471.8,0.4048]
[1725168794777,0.00606686,2472.3,2471.9,1.3448]
[1725168794970,0.00606686,2472.3,2471.9,6.50389527]
[1725168795370,0.00606686,2472.3,2471.9,7.0947639]
[1725168795872,0.00606686,2472.3,2472.0,0.59086863]
[1725168796265,0.00606686,2472.3,2472.1,0.59080055]
[1725168796470,0.00606686,2472.3,2472.1,9.56785999]
[1725168796675,0.00606686,2472.3,2472.2,1.87578183]
[1725168797377,0.00606686,2472.3,2472.2,1.285]
[1725168797680,0.00606686,2472.3,2472.2,1.87578576]
[1725168797876,0.00606686,2472.3,2472.2,2.46656665]
[1725168798077,4.05086686,2472.3,2472.2,1.87578089]
[1725168798379,10.05086686,2472.3,2471.7,0.5908288]
[1725168798680,3.2078,2472.1,2471.8,0.5908288]
[1725168798877,3.2078,2472.1,2471.9,0.5908288]
[1725168799079,3.2078,2472.1,2472.0,0.5908288]
[1725168799376,7.2534,2472.1,2471.8,0.59087905]
[1725168799578,4.24418327,2472.1,2471.4,1.60498]
[1725168799785,4.24418327,2472.1,2471.5,5.76056007]
[1725168799786,3.2078,2471.8,2471.5,5.76056007]
[1725168799975,3.2078,2471.8,2471.6,0.59089]
[1725168800180,1.3065,2471.7,2471.5,5.16967007]
[1725168800477,1.3065,2471.7,2471.6,0.59089282]
[1725168800679,3.2078,2471.8,2471.5,5.41244007]
[1725168800979,4.24418327,2472.1,2471.6,0.24276]
[1725168801180,3.2078,2472.1,2471.7,0.59089568]
[1725168801479,3.2078,2472.1,2471.8,0.59089568]
[1725168801672,3.2078,2472.1,2471.9,0.59089568]
[1725168801985,3.2078,2472.1,2472.0,0.59089568]
[1725168802675,3.2078,2472.1,2471.4,0.39388795]
[1725168802676,14.28978327,2472.1,2471.4,0.39388795]
[1725168802872,3.2078,2471.7,2471.3,3.73]
[1725168803074,3.2078,2471.7,2471.3,4.12388795]
[1725168803273,3.2078,2471.7,2471.4,0.39388795]
[1725168803581,1.3611,2471.6,2471.4,0.39388795]
[1725168803776,6.44388327,2471.6,2471.2,0.39388795]
[1725168803971,2.39748327,2471.6,2471.2,0.39393403]
[1725168804170,3.2078,2471.4,2471.1,1.3354]
[1725168804370,3.2078,2471.4,2471.2,0.39394304]
[1725168804580,3.2078,2471.4,2471.2,0.39394694]
[1725168804778,5.64458327,2471.4,2471.0,0.39394694]
[1725168804978,5.64458327,2471.4,2471.1,0.39394694]
[1725168805178,5.64458327,2471.4,2471.2,0.39395881]
[1725168805375,5.64458327,2471.4,2471.0,0.39395919]
[1725168805577,1.03638327,2471.2,2470.8,0.21121374]
[1725168805884,1.03638327,2471.2,2470.9,0.39397177]
[1725168806181,1.03638327,2471.2,2471.0,0.39397177]
[1725168806386,1.03638327,2471.2,2470.8,0.00606686]
[1725168806588,1.03638327,2471.2,2470.9,0.39397777]
[1725168806776,1.03638327,2471.3,2471.0,0.39397777]
[1725168806971,4.24418327,2471.4,2471.1,0.39397777]
[1725168807171,4.24418327,2471.4,2471.1,5.60431456]
[1725168807373,4.24418327,2471.4,2471.2,0.39394072]
[1725168807672,4.24418327,2471.4,2471.2,6.6519127]
[1725168808385,3.2078,2471.4,2471.2,6.6519127]
[1725168809085,4.24418327,2471.4,2471.2,6.6519127]
[1725168809786,4.24418327,2471.4,2471.2,1.2709]
[1725168810182,4.24418327,2471.4,2471.2,1.66484409]
[1725168810385,1.03638327,2471.5,2471.2,1.2709]
[1725168810686,2.39748327,2471.6,2471.3,0.3939102]
[1725168810876,2.39748327,2471.6,2471.2,1.2709]
[1725168811078,2.39748327,2471.6,2471.3,0.39390628]
[1725168811286,2.39748327,2471.6,2471.4,0.39389914]
[1725168811484,2.39748327,2471.6,2471.3,0.39389914]
[1725168811679,4.24418327,2471.7,2471.4,5.5603296]
[1725168811882,4.24418327,2471.7,2471.5,0.39389914]
[1725168812078,4.24418327,2471.7,2471.5,0.39389061]
[1725168812386,4.24418327,2471.7,2471.4,0.39388694]
[1725168812586,4.24418327,2471.7,2471.3,1.3292]
[1725168812779,4.24418327,2471.7,2471.4,5.71615165]
[1725168812979,4.24418327,2471.7,2471.5,0.39390041]
[1725168813483,4.24418327,2471.7,2471.5,0.39388907]
[1725168813892,4.24418327,2471.7,2471.4,5.32225124]
[1725168814184,4.24418327,2471.7,2471.5,0.39388931]
[1725168814482,4.24418327,2471.7,2471.2,1.6757]
[1725168814701,3.2078,2471.4,2470.9,5.83448182]
[1725168814876,3.2078,2471.4,2471.0,1.66934016]
[1725168815078,3.2078,2471.4,2471.1,0.39394016]
[1725168815277,3.2078,2471.4,2471.2,0.39394016]
[1725168815486,3.2078,2471.4,2471.0,1.2754]
[1725168815677,3.2078,2471.4,2471.1,0.3939369]
[1725168815876,3.2078,2471.4,2471.2,0.3939369]
[1725168816088,3.2078,2471.4,2471.0,1.2754]
[1725168816293,3.2078,2471.4,2471.1,3.19394026]
[1725168816483,4.24418327,2471.4,2471.2,0.39394026]
[1725168816678,4.24418327,2471.4,2471.1,2.8]
[1725168818485,4.24418327,2471.4,2471.2,0.39394304]
[1725168818696,4.24418327,2471.4,2471.1,2.8]
[1725168818988,4.24418327,2471.4,2471.2,0.39394087]
[1725168819187,3.2078,2471.4,2471.1,2.8]
[1725168819391,3.2078,2471.4,2471.2,0.3939404]
[1725168819595,4.24418327,2471.4,2471.0,1.2754]
[1725168819784,4.24418327,2471.4,2471.1,0.39395217]
[1725168820097,4.24418327,2471.4,2471.0,1.2754]
[1725168820098,1.03638327,2471.3,2471.0,1.2754]
[1725168820388,1.03638327,2471.3,2470.8,3.04890686]
[1725168820389,1.03638327,2471.2,2470.8,3.04890686]
[1725168820895,4.76237491,2471.4,2470.9,5.62264391]
[1725168820896,1.03638327,2471.3,2470.9,5.62264391]
[1725168821085,1.03638327,2471.3,2471.0,0.39397152]
[1725168821280,1.03638327,2471.2,2470.9,5.22867239]
[1725168821487,1.03638327,2471.2,2471.0,0.39396917]
[1725168821687,1.03638327,2471.2,2470.9,5.22867239]
[1725168821997,1.03638327,2471.3,2471.0,0.39396792]
[1725168822198,1.03638327,2471.2,2470.9,5.22867239]
[1725168822492,1.03638327,2471.2,2471.0,0.39396694]
[1725168822692,1.2946,2471.1,2470.9,5.22867239]
[1725168822893,1.2946,2471.1,2471.0,0.39397127]
[1725168823483,1.2946,2471.1,2470.9,5.22867239]
[1725168823484,5.53878327,2471.1,2470.9,5.22867239]
[1725168823886,1.03638327,2471.0,2470.9,5.22867239]
[1725168824288,1.03638327,2471.0,2470.9,5.62266215]
[1725168825089,1.03638327,2471.0,2470.8,0.00606686]
[1725168825598,5.08358327,2470.9,2470.8,0.00606686]
[1725168825794,0.24285,2470.8,2470.4,0.39402615]
[1725168825995,4.25223063,2470.6,2470.1,6.0078]
[1725168826294,4.25223063,2470.6,2470.2,5.66425048]
[1725168826487,4.25223063,2470.6,2470.3,0.20678547]
[1725168826488,3.2078,2470.4,2470.3,0.20678547]
[1725168826691,4.25223063,2470.4,2470.1,0.00606686]
[1725168826887,5.57003063,2470.4,2470.1,0.00606686]
[1725168827093,1.56664595,2470.2,2470.1,0.00606686]
[1725168827394,1.56664595,2470.3,2470.1,0.00606686]
[1725168827587,1.56664595,2470.2,2470.1,0.00606686]
[1725168828099,5.61464595,2470.2,2470.1,0.00606686]
[1725168828289,11.09053598,2470.2,2470.1,0.00606686]
[1725168828489,11.81711703,2470.2,2469.3,3.19413925]
[1725168828693,3.2078,2469.9,2469.4,0.39413925]
[1725168829092,3.2078,2469.9,2469.7,0.24295]
[1725168829401,4.163,2470.2,2469.8,1.3316]
[1725168829704,3.2078,2470.3,2469.8,9.46013925]
[1725168829994,3.2078,2470.3,2470.0,2.8]
[1725168830194,3.2078,2470.3,2469.8,1.33766686]
[1725168830389,3.2078,2470.0,2469.8,1.33766686]
[1725168830591,4.0488,2469.9,2469.8,1.33766686]
[1725168830793,4.0488,2469.9,2469.8,0.00606686]
[1725168831098,10.0488,2469.9,2469.8,0.00606686]
[1725168831994,4.0488,2469.9,2469.8,0.00606686]
[1725168832694,10.0488,2469.9,2469.8,0.00606686]
[1725168833692,4.0488,2469.9,2469.8,0.00606686]
[1725168834197,10.0488,2469.9,2469.1,1.2965]
[1725168834398,3.2078,2469.4,2469.1,1.2965]
[1725168834789,3.2078,2469.4,2469.1,1.50058121]
[1725168836299,3.2078,2469.4,2469.1,0.20408121]
[1725168837196,4.0496,2469.3,2469.0,0.00606686]
[1725168837404,3.2078,2469.1,2469.0,0.00606686]
[1725168837799,7.2582,2469.1,2469.0,0.00606686]
[1725168839498,8.6156,2469.1,2469.0,0.00606686]
[1725168839697,8.6156,2469.1,2468.2,4.148]
[1725168839698,0.24303,2469.0,2468.2,8.3274]
[1725168839903,0.24303,2469.0,2468.2,4.38489914]
[1725168839904,3.2078,2468.6,2468.2,4.38489914]
[1725168840101,3.2078,2468.6,2468.3,5.25472687]
[1725168840301,3.2078,2468.6,2468.2,1.58489914]
[1725168840499,3.2078,2468.6,2468.2,1.3794]
[1725168840500,1.363,2468.5,2468.2,1.3794]
[1725168840704,1.363,2468.5,2468.2,1.38344456]
[1725168840904,1.363,2468.5,2468.3,0.20531689]
[1725168841302,1.363,2468.5,2468.2,0.00404456]
[1725168841502,3.2078,2468.3,2468.2,0.00404456]
[1725168842101,7.259,2468.3,2468.2,0.00404456]
[1725168843709,3.2078,2468.3,2468.2,0.00404456]
[1725168844017,3.2078,2468.6,2468.2,0.00404456]
[1725168844221,2.8,2469.0,2468.2,0.00404456]
[1725168844222,3.2078,2468.3,2468.2,0.00404456]
[1725168845303,7.259,2468.3,2468.2,0.00404456]
[1725168845503,13.259,2468.3,2468.2,0.00404456]
[1725168846813,7.259,2468.3,2468.2,0.00404456]
[1725168847216,10.059,2468.3,2466.7,3.2078]
[1725168847523,3.2078,2467.4,2466.9,0.24323]
[1725168847713,3.2078,2467.0,2466.8,5.21785888]
[1725168848015,4.66240946,2468.3,2466.5,0.24327]
[1725168848016,3.2078,2467.5,2467.0,0.24322]
[1725168848219,3.2078,2467.5,2466.6,5.21785888]
[1725168848220,3.2078,2467.2,2466.6,5.21785888]
[1725168848420,3.2078,2467.2,2466.6,8.29060745]
[1725168848613,3.2078,2467.2,2466.6,5.15347514]
[1725168848811,1.3963,2467.4,2466.6,12.94707514]
[1725168849127,3.21387989,2467.5,2466.6,12.94707514]
[1725168849128,3.21387989,2467.5,2466.7,7.2614]
[1725168849317,3.2078,2467.8,2467.4,0.24318]
[1725168849618,3.2078,2467.8,2467.6,0.24315]
[1725168849815,3.2078,2467.8,2467.5,6.84404823]
[1725168850020,3.2078,2467.8,2467.7,5.19808823]
[1725168850216,3.2078,2467.8,2467.7,4.29515]
[1725168850419,3.2078,2467.8,2467.7,5.61295]
[1725168850620,3.2078,2467.8,2467.7,6.68421442]
[1725168850920,3.2078,2467.8,2467.7,10.73621442]
[1725168851813,3.2078,2467.8,2467.7,6.68421442]
[1725168852017,3.2078,2467.8,2467.7,10.73621442]
[1725168852220,3.2078,2467.8,2467.7,6.68421442]
[1725168852822,3.2078,2467.8,2467.6,1.3544]
[1725168853317,3.2078,2467.8,2467.7,5.27393963]
[1725168853718,3.2078,2467.8,2467.6,1.3544]
[1725168855126,3.2078,2467.8,2467.7,5.35144438]
[1725168855334,0.00607989,2468.0,2467.8,0.24313]
[1725168855529,0.00607989,2468.0,2467.7,10.82264438]
[1725168855726,0.00607989,2468.0,2467.9,5.15958486]
[1725168856026,0.00607989,2468.0,2467.8,5.15958486]
[1725168856328,0.00607989,2468.0,2467.8,4.052]
[1725168856634,0.00607989,2468.0,2467.9,4.052]
[1725168857024,0.00607989,2468.0,2467.9,9.22681971]
[1725168858317,0.00607989,2468.0,2467.9,5.17481971]